[Event "7th Leer Open-A 2024"]
[Site "Leer"]
[Date "2024.10.31"]
[Round "2.6"]
[White "Tschernatsch, Johannes"]
[Black "Meiwes, Thore"]
[Result "1-0"]
[ECO "B34"]
[WhiteElo "2319"]
[BlackElo "2059"]
[Annotator "RC"]
[PlyCount "93"]
[EventDate "2024.10.14"]
[EventType "swiss"]
[EventCountry "GER"]
[SourceTitle "playchess.com"]
[Source "ChessBase"]
[SourceQuality "1"]
[TimeControl "40/5400+30:900+30"]

1. e4 {[%emt 0:02:24]} c5 {[%emt 0:00:03]} 2. Nf3 {[%emt 0:00:04]} Nc6 {[%emt 0:00:04]} 3. Nc3 {[%emt 0:00:11]} g6 {[%emt 0:00:04]} 4. d4 {[%emt 0:00:05]} cxd4 {[%emt 0:00:04]} 5. Nxd4 {[%emt 0:00:05]} Bg7 {[%emt 0:00:03]} 6. Be3 {[%emt 0:00:06]} Nf6 {[%emt 0:00:03]} 7. Nxc6 {[%emt 0:00:13]} dxc6 {[%emt 0:00:05]} 8. Qxd8+ {[%emt 0:00:25]} Kxd8 {[%emt 0:00:05]} 9. O-O-O+ {[%emt 0:01:40]} Ke8 {[%emt 0:00:07]} 10. f3 {[%emt 0:19:46]} Be6 {[%emt 0:00:03]} 11. Ne2 {[%emt 0:05:14]} Nd7 {[%emt 0:04:50]} 12. Nd4 {[%emt 0:03:49]} Bxd4 {[%emt 0:02:47]} 13. Bxd4 {[%emt 0:00:12]} f6 {[%emt 0:00:03]} 14. g4 {[%emt 0:03:18]} Bf7 {[%emt 0:10:42]} 15. g5 {[%emt 0:01:08]} e5 {[%emt 0:00:23]} 16. Bc3 {[%emt 0:00:52]} Be6 {[%emt 0:03:21]} 17. h4 {[%emt 0:05:54]} Rf8 {[%emt 0:03:13]} 18. Be2 {[%emt 0:08:06]} Ke7 {[%emt 0:05:13]} 19. gxf6+ {[%emt 0:12:27]} Rxf6 {[%emt 0:00:22]} 20. Bd2 {[%emt 0:00:29]} Rf7 {[%emt 0:00:53]} 21. Bg5+ {[%emt 0:00:28]} Kf8 {[%emt 0:05:25]} 22. Bh6+ {[%emt 0:00:43]} Ke7 {[%emt 0:00:46]} 23. h5 {[%emt 0:03:09]} Rg8 {[%emt 0:03:59]} 24. Bg5+ {[%emt 0:01:10]} Nf6 {[%emt 0:01:14]} 25. h6 {[%emt 0:06:40]} Re8 {[%emt 0:01:07]} 26. Rd2 {[%emt 0:03:44]} Kf8 {[%emt 0:00:52]} 27. Rhd1 {[%emt 0:00:29]} Nd7 {[%emt 0:02:05]} 28. a4 {[%emt 0:04:45]} a5 {[%emt 0:12:12]} 29. b3 {[%emt 0:00:27]} Nc5 {[%emt 0:06:21]} 30. Be3 {[%emt 0:00:58]} b6 {[%emt 0:01:13]} 31. Rd6 {[%emt 0:00:26]} Rc7 {[%emt 0:00:58]} 32. Kb2 {[%emt 0:02:41]} Ke7 {[%emt 0:08:35]} 33. Bg5+ {[%emt 0:01:30]} Kf7 {[%emt 0:00:15]} 34. Bd8 {[%emt 0:01:03]} Rb7 {[%emt 0:02:10]} 35. Rxc6 {[%emt 0:01:08]} Bd7 {[%emt 0:00:19]} 36. Rf6+ {[%emt 0:03:18]} Kg8 {[%emt 0:00:12]} 37. Bxb6 {[%emt 0:02:04]} Re6 {[%emt 0:04:58]} 38. Rxe6 {[%emt 0:00:39]} Nxe6 {[%emt 0:00:04]} 39. Bc4 {[%emt 0:01:01]} Kf7 {[%emt 0:00:20]} 40. Bxa5 {[%emt 0:00:25]} Kf6 {[%emt 0:01:20]} 41. Bc3 {[%emt 0:16:00]} Nd4 {[%emt 0:15:57]} 42. f4 {[%emt 0:02:30]} Nc6 {[%emt 0:00:16]} 43. fxe5+ {[%emt 0:00:14]} Kg5 {[%emt 0:00:14]} 44. e6 {[%emt 0:00:54]} Bc8 {[%emt 0:00:02]} 45. Bd5 {[%emt 0:00:23]} Rc7 {[%emt 0:00:25]} 46. Bd2+ {[%emt 0:00:20]} Kf6 {[%emt 0:00:21]} 47. Rf1+ {[%emt 0:00:17]} 1-0

[Event "7th Leer Open-A 2024"]
[Site "Leer"]
[Date "2024.10.31"]
[Round "2.7"]
[White "Boesel, Alexander"]
[Black "Bracker, Frank"]
[Result "0-1"]
[ECO "B44"]
[WhiteElo "2045"]
[BlackElo "2297"]
[Annotator "RC"]
[PlyCount "56"]
[EventDate "2024.10.14"]
[EventType "swiss"]
[EventCountry "GER"]
[SourceTitle "playchess.com"]
[Source "ChessBase"]
[SourceQuality "1"]
[TimeControl "40/5400+30:900+30"]

1. e4 {[%emt 0:00:02]} c5 {[%emt 0:03:35]} 2. Nf3 {[%emt 0:00:08]} e6 {[%emt 0:00:08]} 3. d4 {[%emt 0:00:15]} cxd4 {[%emt 0:00:08]} 4. Nxd4 {[%emt 0:00:08]} Nc6 {[%emt 0:00:09]} 5. Be3 {[%emt 0:01:29]} Nf6 {[%emt 0:01:53]} 6. Nd2 {[%emt 0:08:10]} d5 {[%emt 0:01:57]} 7. Nxc6 {[%emt 0:02:29]} bxc6 {[%emt 0:00:13]} 8. e5 {[%emt 0:05:30]} Nd7 {[%emt 0:03:17]} 9. f4 {[%emt 0:03:39]} Be7 {[%emt 0:01:55]} 10. Qg4 {[%emt 0:07:35]} O-O {[%emt 0:03:48]} 11. Bd3 {[%emt 0:07:49]} f5 {[%emt 0:04:01]} 12. Qe2 {[%emt 0:05:24]} Nc5 {[%emt 0:05:19]} 13. Nb3 {[%emt 0:11:20]} Ne4 {[%emt 0:14:46]} 14. O-O {[%emt 0:02:52]} a5 {[%emt 0:05:17]} 15. a4 {[%emt 0:02:07]} c5 {[%emt 0:04:30]} 16. Bxe4 {[%emt 0:15:20]} fxe4 {[%emt 0:01:26]} 17. Bxc5 {[%emt 0:01:14]} Ba6 {[%emt 0:11:25]} 18. Qg4 {[%emt 0:00:06]} Bxf1 {[%emt 0:03:07]} 19. Qxe6+ {[%emt 0:00:19]} Rf7 {[%emt 0:00:16]} 20. Rxf1 {[%emt 0:00:39]} Bxc5+ {[%emt 0:04:33]} 21. Nxc5 {[%emt 0:00:10]} Rc8 {[%emt 0:01:52]} 22. Nb3 {[%emt 0:04:10]} Rxc2 {[%emt 0:03:42]} 23. Rd1 {[%emt 0:01:38]} Qd7 {[%emt 0:05:28]} 24. Nd4 {[%emt 0:07:23]} Qxe6 {[%emt 0:03:55]} 25. Nxe6 {[%emt 0:00:05]} e3 {[%emt 0:01:54]} 26. g3 {[%emt 0:02:18]} Rd7 {[%emt 0:07:24]} 27. f5 {[%emt 0:04:03]} e2 {[%emt 0:00:34]} 28. Re1 {[%emt 0:00:08]} d4 {[%emt 0:07:58]} 0-1

[Event "7th Leer Open-A 2024"]
[Site "Leer"]
[Date "2024.10.31"]
[Round "2.8"]
[White "Hoeffer, David"]
[Black "Giel, Olaf"]
[Result "1-0"]
[ECO "D00"]
[WhiteElo "2304"]
[BlackElo "2076"]
[Annotator "RC"]
[PlyCount "43"]
[EventDate "2024.10.14"]
[EventType "swiss"]
[EventCountry "GER"]
[SourceTitle "playchess.com"]
[Source "ChessBase"]
[SourceQuality "1"]
[TimeControl "40/5400+30:900+30"]

1. d4 {[%emt 0:00:09]} Nf6 {[%emt 0:00:10]} 2. Nc3 {[%emt 0:00:05]} d5 {[%emt 0:00:42]} 3. Bf4 {[%emt 0:00:05]} g6 {[%emt 0:00:40]} 4. e3 {[%emt 0:00:05]} Bg7 {[%emt 0:00:06]} 5. h4 {[%emt 0:00:04]} h5 {[%emt 0:00:09]} 6. Nf3 {[%emt 0:00:05]} Bf5 {[%emt 0:00:49]} 7. Ne5 {[%emt 0:02:12]} Nbd7 {[%emt 0:01:51]} 8. f3 {[%emt 0:01:17]} Nxe5 {[%emt 0:03:08]} 9. dxe5 {[%emt 0:04:20]} Nd7 {[%emt 0:00:37]} 10. Qxd5 {[%emt 0:00:30]} Nxe5 {[%emt 0:03:36]} 11. O-O-O {[%emt 0:21:38]} c6 {[%emt 0:04:01]} 12. Qxe5 {[%emt 0:01:42]} Bxe5 {[%emt 0:00:43]} 13. Rxd8+ {[%emt 0:00:05]} Rxd8 {[%emt 0:00:06]} 14. Bxe5 {[%emt 0:00:03]} f6 {[%emt 0:00:38]} 15. Bg3 {[%emt 0:00:47]} e5 {[%emt 0:00:36]} 16. e4 {[%emt 0:03:48]} Be6 {[%emt 0:00:09]} 17. f4 {[%emt 0:00:03]} exf4 {[%emt 0:00:16]} 18. Bxf4 {[%emt 0:00:06]} Rh7 {[%emt 0:00:13]} 19. Bd3 {[%emt 0:00:09]} b5 {[%emt 0:01:22]} 20. b3 {[%emt 0:01:31]} a6 {[%emt 0:02:38]} 21. Be3 {[%emt 0:01:03]} Rhd7 {[%emt 0:00:52]} 22. Rf1 {[%emt 0:01:01]} 1-0

[Event "7th Leer Open-A 2024"]
[Site "Leer"]
[Date "2024.10.31"]
[Round "2.9"]
[White "Sickmann, Lisa"]
[Black "Nechitaylo, Nikita"]
[Result "0-1"]
[ECO "B32"]
[WhiteElo "1965"]
[BlackElo "2289"]
[Annotator "RC"]
[PlyCount "80"]
[EventDate "2024.10.14"]
[EventType "swiss"]
[EventCountry "GER"]
[SourceTitle "playchess.com"]
[Source "ChessBase"]
[SourceQuality "1"]
[TimeControl "40/5400+30:900+30"]

1. e4 {[%emt 0:01:36]} c5 {[%emt 0:00:05]} 2. Nf3 {[%emt 0:00:04]} Nc6 {[%emt 0:00:04]} 3. d4 {[%emt 0:00:10]} cxd4 {[%emt 0:00:03]} 4. Nxd4 {[%emt 0:00:04]} e5 {[%emt 0:00:04]} 5. Ne2 {[%emt 0:00:06]} f5 {[%emt 0:03:59]} 6. Nbc3 {[%emt 0:06:33]} fxe4 {[%emt 0:01:29]} 7. Ng3 {[%emt 0:00:52]} Bb4 {[%emt 0:15:34]} 8. Bc4 {[%emt 0:03:42]} Nge7 {[%emt 0:00:59]} 9. O-O {[%emt 0:17:05]} Bxc3 {[%emt 0:01:23]} 10. bxc3 {[%emt 0:00:08]} d5 {[%emt 0:02:10]} 11. Bb3 {[%emt 0:01:14]} a5 {[%emt 0:21:38]} 12. a4 {[%emt 0:01:34]} b6 {[%emt 0:03:18]} 13. Qh5+ {[%emt 0:04:54]} g6 {[%emt 0:07:05]} 14. Qh6 {[%emt 0:00:28]} Qc7 {[%emt 0:06:44]} 15. Nxe4 {[%emt 0:05:22]} Ng8 {[%emt 0:01:02]} 16. Qe3 {[%emt 0:15:08]} dxe4 {[%emt 0:02:00]} 17. Qxe4 {[%emt 0:05:24]} Bf5 {[%emt 0:19:16]} 18. Qd5 {[%emt 0:03:40]} Nf6 {[%emt 0:01:31]} 19. Qb5 {[%emt 0:00:49]} O-O-O {[%emt 0:03:28]} 20. Be3 {[%emt 0:03:31]} Na7 {[%emt 0:00:06]} 21. Qxb6 {[%emt 0:03:00]} Qxb6 {[%emt 0:00:08]} 22. Bxb6 {[%emt 0:00:10]} Rd7 {[%emt 0:01:04]} 23. Bxa5 {[%emt 0:01:13]} Nc6 {[%emt 0:00:48]} 24. Bb6 {[%emt 0:06:19]} Nd5 {[%emt 0:00:54]} 25. a5 {[%emt 0:00:37]} Nxb6 {[%emt 0:01:28]} 26. axb6 {[%emt 0:00:07]} Kb7 {[%emt 0:00:05]} 27. Rfb1 {[%emt 0:00:36]} Ra8 {[%emt 0:04:54]} 28. Ba4 {[%emt 0:08:13]} Rxa4 {[%emt 0:00:01]} 29. Rxa4 {[%emt 0:00:16]} Bxc2 {[%emt 0:00:04]} 30. Raa1 {[%emt 0:00:27]} Bxb1 {[%emt 0:00:05]} 31. Rxb1 {[%emt 0:00:03]} Rd3 {[%emt 0:00:21]} 32. c4 {[%emt 0:00:10]} Rc3 {[%emt 0:00:05]} 33. g3 {[%emt 0:00:14]} Rxc4 {[%emt 0:00:05]} 34. Kg2 {[%emt 0:00:21]} e4 {[%emt 0:01:49]} 35. h4 {[%emt 0:00:27]} Ne5 {[%emt 0:00:50]} 36. h5 {[%emt 0:00:18]} Nd3 {[%emt 0:00:54]} 37. hxg6 {[%emt 0:01:21]} hxg6 {[%emt 0:00:04]} 38. Kg1 {[%emt 0:00:29]} Rc2 {[%emt 0:01:10]} 39. Rd1 {[%emt 0:00:23]} Kxb6 {[%emt 0:00:53]} 40. f3 {[%emt 0:00:13]} e3 {[%emt 0:00:20]} 0-1

[Event "7th Leer Open-A 2024"]
[Site "Leer"]
[Date "2024.10.31"]
[Round "2.10"]
[White "Schulze, Lara"]
[Black "Mix, Clemens"]
[Result "1-0"]
[ECO "B30"]
[WhiteElo "2275"]
[BlackElo "2076"]
[Annotator "RC"]
[PlyCount "57"]
[EventDate "2024.10.14"]
[EventType "swiss"]
[EventCountry "GER"]
[SourceTitle "playchess.com"]
[Source "ChessBase"]
[SourceQuality "1"]
[TimeControl "40/5400+30:900+30"]

1. e4 {[%emt 0:00:49]} c5 {[%emt 0:00:09]} 2. Nf3 {[%emt 0:00:40]} Nc6 {[%emt 0:00:09]} 3. Bb5 {[%emt 0:00:28]} Nf6 {[%emt 0:00:12]} 4. Nc3 {[%emt 0:02:12]} Qc7 {[%emt 0:00:13]} 5. O-O {[%emt 0:03:56]} Nd4 {[%emt 0:00:35]} 6. Re1 {[%emt 0:02:55]} a6 {[%emt 0:00:48]} 7. Bf1 {[%emt 0:02:41]} Ng4 {[%emt 0:01:28]} 8. g3 {[%emt 0:06:13]} Nxf3+ {[%emt 0:01:06]} 9. Qxf3 {[%emt 0:00:03]} Ne5 {[%emt 0:00:20]} 10. Qe2 {[%emt 0:02:07]} e6 {[%emt 0:01:31]} 11. b3 {[%emt 0:01:00]} d6 {[%emt 0:02:28]} 12. Bb2 {[%emt 0:01:12]} b5 {[%emt 0:03:16]} 13. Nd1 {[%emt 0:05:09]} Bb7 {[%emt 0:06:07]} 14. Bg2 {[%emt 0:03:39]} Nd7 {[%emt 0:07:07]} 15. a4 {[%emt 0:08:26]} bxa4 {[%emt 0:21:36]} 16. Rxa4 {[%emt 0:00:37]} Nf6 {[%emt 0:04:00]} 17. e5 {[%emt 0:07:11]} dxe5 {[%emt 0:02:39]} 18. Bxe5 {[%emt 0:00:30]} Qb6 {[%emt 0:01:28]} 19. Bxb7 {[%emt 0:05:06]} Qxb7 {[%emt 0:00:02]} 20. Bxf6 {[%emt 0:01:48]} gxf6 {[%emt 0:00:02]} 21. Qh5 {[%emt 0:00:10]} O-O-O {[%emt 0:07:14]} 22. Ne3 {[%emt 0:05:12]} Rd4 {[%emt 0:07:12]} 23. Nc4 {[%emt 0:04:19]} Rd5 {[%emt 0:11:59]} 24. Qf3 {[%emt 0:03:58]} Rd7 {[%emt 0:07:16]} 25. Qe2 {[%emt 0:07:32]} Bd6 {[%emt 0:05:48]} 26. Rea1 {[%emt 0:00:45]} h5 {[%emt 0:02:39]} 27. Rxa6 {[%emt 0:00:28]} Bc7 {[%emt 0:00:34]} 28. Ra7 {[%emt 0:01:07]} Qd5 {[%emt 0:00:58]} 29. Ra8+ {[%emt 0:00:15]} 1-0

[Event "7th Leer Open-A 2024"]
[Site "Leer"]
[Date "2024.10.31"]
[Round "2.11"]
[White "Thiercelin, Jerome"]
[Black "Ngo, Quang Thai"]
[Result "0-1"]
[ECO "E36"]
[WhiteElo "2084"]
[BlackElo "2195"]
[Annotator "RC"]
[PlyCount "74"]
[EventDate "2024.10.14"]
[EventType "swiss"]
[EventCountry "GER"]
[SourceTitle "playchess.com"]
[Source "ChessBase"]
[SourceQuality "1"]
[TimeControl "40/5400+30:900+30"]

1. d4 {[%emt 0:01:38]} Nf6 {[%emt 0:00:20]} 2. c4 {[%emt 0:00:12]} e6 {[%emt 0:00:05]} 3. Nc3 {[%emt 0:00:17]} Bb4 {[%emt 0:00:09]} 4. Qc2 {[%emt 0:00:15]} O-O {[%emt 0:00:09]} 5. a3 {[%emt 0:00:08]} Bxc3+ {[%emt 0:00:05]} 6. Qxc3 {[%emt 0:00:11]} d5 {[%emt 0:00:12]} 7. Bg5 {[%emt 0:01:32]} c5 {[%emt 0:00:09]} 8. dxc5 {[%emt 0:20:43]} d4 {[%emt 0:00:09]} 9. Qf3 {[%emt 0:00:15]} Nbd7 {[%emt 0:00:50]} 10. b4 {[%emt 0:01:51]} a5 {[%emt 0:01:52]} 11. Rd1 {[%emt 0:02:39]} axb4 {[%emt 0:02:23]} 12. axb4 {[%emt 0:00:10]} e5 {[%emt 0:00:31]} 13. e4 {[%emt 0:06:56]} h6 {[%emt 0:08:21]} 14. Bxf6 {[%emt 0:01:15]} Nxf6 {[%emt 0:00:07]} 15. h3 {[%emt 0:00:19]} Bd7 {[%emt 0:06:13]} 16. Bd3 {[%emt 0:02:17]} b6 {[%emt 0:03:34]} 17. b5 {[%emt 0:00:38]} bxc5 {[%emt 0:00:18]} 18. g4 {[%emt 0:01:08]} Ra3 {[%emt 0:04:35]} 19. Ne2 {[%emt 0:01:33]} Be6 {[%emt 0:02:52]} 20. g5 {[%emt 0:16:59]} hxg5 {[%emt 0:02:46]} 21. Rg1 {[%emt 0:00:24]} Nh7 {[%emt 0:06:03]} 22. Qh5 {[%emt 0:01:27]} Qf6 {[%emt 0:01:39]} 23. Rg3 {[%emt 0:03:54]} g6 {[%emt 0:01:42]} 24. Qh6 {[%emt 0:00:15]} Qg7 {[%emt 0:00:26]} 25. Qxg7+ {[%emt 0:00:16]} Kxg7 {[%emt 0:00:05]} 26. Nc1 {[%emt 0:05:30]} Rfa8 {[%emt 0:05:23]} 27. Bf1 {[%emt 0:02:33]} Rxg3 {[%emt 0:00:21]} 28. fxg3 {[%emt 0:00:13]} Nf6 {[%emt 0:00:08]} 29. Nd3 {[%emt 0:06:37]} Nd7 {[%emt 0:11:42]} 30. h4 {[%emt 0:04:08]} gxh4 {[%emt 0:01:32]} 31. gxh4 {[%emt 0:00:07]} Bxc4 {[%emt 0:00:42]} 32. Rb1 {[%emt 0:06:49]} Bxd3 {[%emt 0:00:43]} 33. Bxd3 {[%emt 0:00:08]} Nb6 {[%emt 0:00:08]} 34. Rc1 {[%emt 0:00:28]} c4 {[%emt 0:00:29]} 35. Rxc4 {[%emt 0:00:39]} Nxc4 {[%emt 0:00:17]} 36. Bxc4 {[%emt 0:00:06]} Ra4 {[%emt 0:00:46]} 37. Bd5 {[%emt 0:00:09]} Rb4 {[%emt 0:00:28]} 0-1

[Event "7th Leer Open-A 2024"]
[Site "Leer"]
[Date "2024.10.31"]
[Round "2.12"]
[White "Gutman, Lev"]
[Black "Dornieden, Jonas"]
[Result "1-0"]
[ECO "E05"]
[WhiteElo "2264"]
[BlackElo "2064"]
[Annotator "RC"]
[PlyCount "91"]
[EventDate "2024.10.14"]
[EventType "swiss"]
[EventCountry "GER"]
[SourceTitle "playchess.com"]
[Source "ChessBase"]
[SourceQuality "1"]
[TimeControl "40/5400+30:900+30"]

1. Nf3 {[%emt 0:03:54]} Nf6 {[%emt 0:00:15]} 2. g3 {[%emt 0:00:25]} d5 {[%emt 0:00:13]} 3. Bg2 {[%emt 0:00:11]} e6 {[%emt 0:00:42]} 4. O-O {[%emt 0:02:04]} Be7 {[%emt 0:00:34]} 5. d4 {[%emt 0:00:13]} O-O {[%emt 0:00:26]} 6. c4 {[%emt 0:00:14]} dxc4 {[%emt 0:00:18]} 7. Qc2 {[%emt 0:01:56]} b6 {[%emt 0:01:24]} 8. Bg5 {[%emt 0:04:03]} Nd5 {[%emt 0:01:34]} 9. Bxe7 {[%emt 0:00:23]} Qxe7 {[%emt 0:00:28]} 10. Qxc4 {[%emt 0:00:14]} Ba6 {[%emt 0:03:10]} 11. Qc2 {[%emt 0:00:11]} Nd7 {[%emt 0:03:47]} 12. Nc3 {[%emt 0:15:31]} c5 {[%emt 0:08:57]} 13. Nxd5 {[%emt 0:06:49]} exd5 {[%emt 0:00:15]} 14. Rfe1 {[%emt 0:00:02]} Nf6 {[%emt 0:06:46]} 15. Rac1 {[%emt 0:08:09]} c4 {[%emt 0:12:10]} 16. Ne5 {[%emt 0:08:37]} Bb7 {[%emt 0:06:43]} 17. Qa4 {[%emt 0:03:51]} a6 {[%emt 0:02:02]} 18. b3 {[%emt 0:00:09]} b5 {[%emt 0:04:40]} 19. Qa5 {[%emt 0:00:08]} Rac8 {[%emt 0:01:22]} 20. a4 {[%emt 0:03:29]} Qc7 {[%emt 0:05:17]} 21. Qb4 {[%emt 0:06:33]} Ba8 {[%emt 0:02:24]} 22. axb5 {[%emt 0:01:32]} axb5 {[%emt 0:02:37]} 23. Qxb5 {[%emt 0:00:26]} Qa7 {[%emt 0:06:34]} 24. bxc4 {[%emt 0:02:59]} Qxd4 {[%emt 0:00:51]} 25. Nf3 {[%emt 0:00:11]} Qa7 {[%emt 0:02:37]} 26. c5 {[%emt 0:05:03]} Rb8 {[%emt 0:01:49]} 27. Qd3 {[%emt 0:00:15]} Rfc8 {[%emt 0:01:25]} 28. Qd4 {[%emt 0:01:24]} Rb5 {[%emt 0:02:50]} 29. c6 {[%emt 0:26:04]} Qb8 {[%emt 0:06:28]} 30. Ne5 {[%emt 0:00:00]} Rb4 {[%emt 0:02:12]} 31. Qc5 {[%emt 0:00:00]} Qxe5 {[%emt 0:04:35]} 32. Qxb4 {[%emt 0:00:00]} Rxc6 {[%emt 0:04:51]} 33. Qa4 {[%emt 0:00:00]} Qe8 {[%emt 0:00:45]} 34. Qa7 {[%emt 0:00:00]} g6 {[%emt 0:01:33]} 35. Qd4 {[%emt 0:00:00]} h5 {[%emt 0:03:47]} 36. Rxc6 {[%emt 0:00:00]} Qxc6 {[%emt 0:00:05]} 37. Rb1 {[%emt 0:00:00]} Nd7 {[%emt 0:01:10]} 38. h3 {[%emt 0:00:00]} Qc2 {[%emt 0:00:55]} 39. Re1 {[%emt 0:00:00]} Qc6 {[%emt 0:00:35]} 40. g4 {[%emt 0:00:00]} hxg4 {[%emt 0:00:20]} 41. hxg4 {[%emt 0:11:26]} Qe6 {[%emt 0:02:21]} 42. g5 {[%emt 0:00:00]} Bc6 {[%emt 0:03:26]} 43. Rc1 {[%emt 0:00:00]} Ne5 {[%emt 0:02:18]} 44. Rc3 {[%emt 0:00:00]} Nc4 {[%emt 0:03:54]} 45. e4 {[%emt 0:00:00]} Qg4 {[%emt 0:01:36]} 46. Rh3 {[%emt 0:00:00]} 1-0

[Event "7th Leer Open-A 2024"]
[Site "Leer"]
[Date "2024.10.31"]
[Round "2.13"]
[White "Wiege, Andre"]
[Black "de Voogt, Juergen"]
[Result "1/2-1/2"]
[ECO "B40"]
[WhiteElo "2031"]
[BlackElo "2245"]
[Annotator "RC"]
[PlyCount "22"]
[EventDate "2024.10.14"]
[EventType "swiss"]
[EventCountry "GER"]
[SourceTitle "playchess.com"]
[Source "ChessBase"]
[SourceQuality "1"]
[TimeControl "40/5400+30:900+30"]

1. e4 {[%emt 0:00:07]} c5 {[%emt 0:00:19]} 2. Nf3 {[%emt 0:00:50]} e6 {[%emt 0:00:12]} 3. Nc3 {[%emt 0:00:28]} a6 {[%emt 0:00:16]} 4. g3 {[%emt 0:00:51]} b5 {[%emt 0:00:35]} 5. Bg2 {[%emt 0:01:07]} Bb7 {[%emt 0:00:08]} 6. d3 {[%emt 0:02:14]} Nc6 {[%emt 0:02:44]} 7. Be3 {[%emt 0:02:30]} Qc7 {[%emt 0:02:13]} 8. Qd2 {[%emt 0:03:16]} Nf6 {[%emt 0:01:36]} 9. h3 {[%emt 0:01:35]} Be7 {[%emt 0:06:04]} 10. O-O {[%emt 0:01:45]} O-O {[%emt 0:02:40]} 11. Rae1 {[%emt 0:02:38]} Rad8 {[%emt 0:04:41]} 1/2-1/2

[Event "7th Leer Open-A 2024"]
[Site "Leer"]
[Date "2024.10.31"]
[Round "2.14"]
[White "Hintze, Helge"]
[Black "Hansch, Torsten"]
[Result "1/2-1/2"]
[ECO "A13"]
[WhiteElo "2230"]
[BlackElo "2057"]
[Annotator "RC"]
[PlyCount "119"]
[EventDate "2024.10.14"]
[EventType "swiss"]
[EventCountry "GER"]
[SourceTitle "playchess.com"]
[Source "ChessBase"]
[SourceQuality "1"]
[TimeControl "40/5400+30:900+30"]

1. c4 {[%emt 0:01:01]} e6 {[%emt 0:00:10]} 2. g3 {[%emt 0:00:21]} d5 {[%emt 0:00:19]} 3. Bg2 {[%emt 0:00:12]} Nf6 {[%emt 0:00:23]} 4. Nf3 {[%emt 0:00:20]} d4 {[%emt 0:00:31]} 5. O-O {[%emt 0:00:17]} Be7 {[%emt 0:00:12]} 6. e3 {[%emt 0:00:36]} Nc6 {[%emt 0:00:16]} 7. d3 {[%emt 0:03:18]} O-O {[%emt 0:00:24]} 8. exd4 {[%emt 0:02:11]} Nxd4 {[%emt 0:00:14]} 9. Nc3 {[%emt 0:00:24]} Nxf3+ {[%emt 0:04:30]} 10. Bxf3 {[%emt 0:00:29]} e5 {[%emt 0:00:30]} 11. Re1 {[%emt 0:01:38]} Bd6 {[%emt 0:01:20]} 12. Nb5 {[%emt 0:10:25]} c6 {[%emt 0:00:19]} 13. Nxd6 {[%emt 0:00:35]} Qxd6 {[%emt 0:00:03]} 14. Qe2 {[%emt 0:00:30]} Bf5 {[%emt 0:13:30]} 15. Qxe5 {[%emt 0:01:54]} Qxe5 {[%emt 0:00:08]} 16. Rxe5 {[%emt 0:00:06]} Bxd3 {[%emt 0:00:09]} 17. b3 {[%emt 0:00:41]} Rfe8 {[%emt 0:04:57]} 18. Rxe8+ {[%emt 0:02:02]} Rxe8 {[%emt 0:00:04]} 19. Be3 {[%emt 0:00:06]} a6 {[%emt 0:00:55]} 20. Rd1 {[%emt 0:00:30]} Bf5 {[%emt 0:01:26]} 21. Kg2 {[%emt 0:02:41]} Nd7 {[%emt 0:10:02]} 22. g4 {[%emt 0:03:45]} Be6 {[%emt 0:00:02]} 23. h3 {[%emt 0:00:32]} f6 {[%emt 0:03:33]} 24. Kg3 {[%emt 0:03:17]} Kf7 {[%emt 0:00:38]} 25. Bf4 {[%emt 0:05:13]} Ne5 {[%emt 0:04:24]} 26. Be4 {[%emt 0:05:03]} Ng6 {[%emt 0:02:24]} 27. Bd6 {[%emt 0:02:04]} Rd8 {[%emt 0:04:58]} 28. f4 {[%emt 0:02:18]} Bc8 {[%emt 0:04:29]} 29. f5 {[%emt 0:05:18]} Ne5 {[%emt 0:04:46]} 30. Rd4 {[%emt 0:03:17]} Re8 {[%emt 0:00:33]} 31. c5 {[%emt 0:02:55]} g6 {[%emt 0:00:51]} 32. Kf4 {[%emt 0:01:42]} g5+ {[%emt 0:02:35]} 33. Kg3 {[%emt 0:00:57]} Kg7 {[%emt 0:05:55]} 34. Kf2 {[%emt 0:05:52]} h5 {[%emt 0:05:04]} 35. Kg3 {[%emt 0:04:16]} hxg4 {[%emt 0:03:55]} 36. hxg4 {[%emt 0:00:07]} Nf7 {[%emt 0:00:33]} 37. Bc7 {[%emt 0:00:35]} Re7 {[%emt 0:01:42]} 38. Ba5 {[%emt 0:01:01]} Re5 {[%emt 0:03:03]} 39. b4 {[%emt 0:03:48]} Re8 {[%emt 0:00:10]} 40. Kf2 {[%emt 0:03:21]} Ne5 {[%emt 0:00:52]} 41. Bg2 {[%emt 0:16:31]} Rh8 {[%emt 0:18:32]} 42. Bc7 {[%emt 0:00:26]} Nf7 {[%emt 0:03:29]} 43. Bf1 {[%emt 0:04:24]} Rh4 {[%emt 0:04:12]} 44. Bg3 {[%emt 0:05:57]} Rh8 {[%emt 0:00:01]} 45. Bc7 {[%emt 0:01:23]} Rh4 {[%emt 0:00:09]} 46. Ke3 {[%emt 0:00:18]} Nh6 {[%emt 0:01:11]} 47. Be2 {[%emt 0:11:31]} Bxf5 {[%emt 0:01:14]} 48. Bg3 {[%emt 0:00:11]} Nxg4+ {[%emt 0:05:56]} 49. Kd2 {[%emt 0:01:45]} Rh3 {[%emt 0:00:00]} 50. Bxg4 {[%emt 0:00:00]} Bxg4 {[%emt 0:00:00]} 51. Rxg4 {[%emt 0:00:00]} Kg6 {[%emt 0:00:00]} 52. Bf2 {[%emt 0:00:00]} Ra3 {[%emt 0:00:00]} 53. Rd4 {[%emt 0:00:00]} Rxa2+ {[%emt 0:00:00]} 54. Ke3 {[%emt 0:00:00]} a5 {[%emt 0:00:00]} 55. Kf3 {[%emt 0:00:00]} f5 {[%emt 0:00:00]} 56. Rd7 {[%emt 0:00:00]} g4+ {[%emt 0:00:00]} 57. Kg3 {[%emt 0:00:00]} f4+ {[%emt 0:01:32]} 58. Kxg4 {[%emt 0:00:00]} Rxf2 {[%emt 0:00:13]} 59. Rxb7 {[%emt 0:00:00]} axb4 {[%emt 0:01:02]} 60. Rxb4 {[%emt 0:00:06]} 1/2-1/2